bitfinex-derivatives/quotes_ETHF0:USTF0_20250612
["timestamp","ask_amount","ask_price","bid_price","bid_amount"]
[1749713351403,5.6987,2758.2,2757.8,0.6286]
[1749713351404,0.72506,2757.9,2757.8,0.6286]
[1749713351609,0.72505,2758.0,2757.8,0.6286]
[1749713351910,0.72506,2757.9,2757.8,0.6286]
[1749713352609,3.93286,2757.9,2757.8,0.6286]
[1749713354413,3.2078,2757.9,2757.8,0.6286]
[1749713354616,3.93286,2757.9,2757.8,0.6286]
[1749713355115,3.2078,2757.9,2757.8,0.6286]
[1749713355414,0.72499,2758.2,2757.8,1.8212]
[1749713355817,0.72503,2758.1,2757.9,1.1926]
[1749713356010,3.93278,2758.3,2757.9,1.1926]
[1749713356215,0.72498,2758.2,2757.9,1.1926]
[1749713356413,3.2078,2758.3,2757.9,1.1926]
[1749713356608,3.93277,2758.3,2757.9,1.1926]
[1749713356814,0.72499,2758.2,2757.9,1.1926]
[1749713357419,3.2078,2758.3,2757.9,1.1926]
[1749713357620,0.72499,2758.2,2757.9,1.1926]
[1749713357818,0.72499,2758.2,2757.8,1.35368]
[1749713358420,3.2078,2758.3,2757.8,0.6286]
[1749713358713,0.72506,2757.9,2757.5,1.91774]
[1749713358918,3.2078,2758.0,2757.5,0.5972]
[1749713359119,0.72511,2757.7,2757.5,0.5972]
[1749713359518,0.7251,2757.8,2757.5,1.32236]
[1749713360617,0.72511,2757.7,2757.5,0.5972]
[1749713360814,0.72509,2757.8,2757.5,1.32235]
[1749713361016,0.72511,2757.7,2757.5,0.5972]
[1749713361623,3.2078,2757.7,2756.7,0.28782271]
[1749713361921,3.933,2757.4,2757.1,0.72526]
[1749713362118,3.933,2757.4,2757.0,0.72527]
[1749713362417,3.2078,2757.4,2757.1,1.35336]
[1749713362613,3.933,2757.4,2757.1,0.6281]
[1749713363113,3.2078,2757.4,2757.1,1.35337]
[1749713363312,3.933,2757.4,2757.1,1.35336]
[1749713363512,0.7252,2757.4,2757.1,1.35336]
[1749713363917,3.2078,2757.4,2757.1,0.6281]
[1749713364123,0.544,2757.3,2757.0,0.72529]
[1749713364320,0.544,2757.3,2757.1,0.72526]
[1749713364623,0.544,2757.3,2756.9,3.2078]
[1749713364816,0.544,2757.3,2756.8,1.8627]
[1749713364817,0.544,2757.3,2757.0,0.72528]
[1749713365220,1.26922,2757.3,2756.8,1.8627]
[1749713365426,0.72525,2757.2,2756.8,1.31363]
[1749713365724,2.63184,2757.2,2756.9,0.72531]
[1749713365924,1.9066,2757.2,2756.9,0.72531]
[1749713366327,2.63185,2757.2,2756.9,0.72531]
[1749713366518,1.9066,2757.2,2756.9,0.72531]
[1749713367025,2.63184,2757.2,2756.9,0.72531]
[1749713367325,1.9066,2757.2,2757.0,0.72528]
[1749713367525,1.9066,2757.2,2756.8,0.5883]
[1749713367719,1.9066,2757.2,2757.0,0.72529]
[1749713367920,2.63185,2757.2,2756.9,0.72531]
[1749713368135,1.9066,2757.2,2757.0,0.72529]
[1749713368620,1.9066,2757.2,2757.1,0.72527]
[1749713368825,0.6222,2757.2,2757.1,0.72527]
[1749713369426,0.6222,2757.2,2756.8,0.5883]
[1749713369427,0.6222,2757.2,2757.0,0.72528]
[1749713369918,0.6222,2757.2,2756.8,0.5883]
[1749713370113,0.6222,2757.2,2757.0,0.72528]
[1749713370317,3.7518,2757.3,2756.8,0.5883]
[1749713370521,3.7518,2757.3,2756.8,2.40164]
[1749713370724,3.7518,2757.3,2757.1,0.72524]
[1749713371320,3.7518,2757.3,2757.2,0.72524]
[1749713371521,0.544,2757.3,2757.2,3.93304]
[1749713371726,0.8341,2757.3,2757.2,8.93304]
[1749713374630,0.64193951,2757.9,2757.3,1.81303]
[1749713374930,0.64193951,2757.9,2757.8,0.72508]
[1749713375123,0.00543951,2757.9,2757.8,5.01808]
[1749713377120,1.1942,2758.4,2758.2,0.72496]
[1749713377329,0.6122,2758.3,2758.2,0.72496]
[1749713377529,0.6122,2758.3,2758.2,5.01796]
[1749713378225,0.00543951,2758.5,2758.4,0.72493]
[1749713379225,0.00543951,2758.5,2758.2,4.293]
[1749713379524,1.19963951,2758.5,2758.2,5.01798]
[1749713379721,1.83433951,2758.5,2758.2,5.01798]
[1749713380636,2.55924951,2758.5,2758.2,4.293]
[1749713380828,2.55924951,2758.5,2758.2,0.72497]
[1749713381033,2.55924951,2758.5,2758.3,20.909]
[1749713381936,1.83433951,2758.5,2758.1,3.2078]
[1749713382127,5.13033,2758.4,2758.2,20.907]
[1749713382433,1.1976,2758.3,2758.2,21.63198]
[1749713383632,1.1976,2758.3,2758.2,20.907]
[1749713384033,0.64013951,2758.5,2758.2,20.907]
[1749713384234,1.2722,2758.4,2758.3,20.911]
[1749713384932,1.2722,2758.4,2758.0,3.21323951]
[1749713385130,1.37485,2758.3,2758.0,3.93824951]
[1749713385329,1.99718,2758.2,2758.1,20.912]
[1749713386023,1.2722,2758.2,2758.1,20.912]
[1749713386228,1.2722,2758.2,2758.1,21.637]
[1749713386733,1.2722,2758.2,2758.1,20.912]
[1749713387737,1.2722,2758.2,2758.1,20.906]
[1749713388434,1.2722,2758.2,2758.1,21.631]
[1749713388938,1.2722,2758.2,2758.1,21.63]
[1749713389638,1.2722,2758.2,2758.1,20.905]
[1749713390532,1.2722,2758.2,2758.1,20.902]
[1749713391141,1.2722,2758.2,2758.1,21.6890172]
[1749713391437,1.2722,2758.2,2758.1,20.9640172]
[1749713392135,1.2722,2758.2,2758.1,21.6890172]
[1749713394432,1.2722,2758.2,2758.1,20.9640172]
[1749713395042,1.2722,2758.2,2758.1,20.9490172]
[1749713395544,1.99718,2758.2,2758.1,20.9490172]
[1749713395738,1.99718,2758.2,2758.1,0.0620172]
[1749713395938,1.99718,2758.2,2758.1,20.9480172]
[1749713398356,1.2722,2758.2,2758.1,20.9480172]
[1749713399056,1.2722,2758.2,2758.1,20.9430172]
[1749713399458,1.99718,2758.2,2758.1,20.9430172]
[1749713400356,1.2722,2758.2,2758.1,20.9430172]
[1749713400556,1.99718,2758.2,2758.1,20.9400172]
[1749713401057,1.99718,2758.2,2758.1,20.9370172]
[1749713401256,1.99718,2758.2,2758.1,0.0620172]
[1749713401659,1.99718,2758.2,2758.1,16.6380172]
[1749713402259,6.99718,2758.2,2758.1,16.6420172]
[1749713402456,1.99718,2758.2,2758.1,16.6420172]
[1749713403454,1.99718,2758.2,2758.1,16.6400172]
[1749713404463,1.99718,2758.2,2758.1,0.0620172]
[1749713404659,1.99718,2758.2,2758.1,16.6390172]
[1749713408769,1.99718,2758.2,2758.1,16.6310172]
[1749713411165,0.72498,2758.2,2758.1,16.6310172]
[1749713411364,3.2078,2758.4,2758.1,16.6310172]
[1749713411561,0.00543951,2758.5,2758.2,7.5068]
[1749713411763,0.72493,2758.4,2758.3,0.631]
[1749713412464,0.00543951,2758.5,2758.4,0.72493]
[1749713412763,0.73033951,2758.5,2758.4,0.72493]
[1749713413067,0.73033951,2758.5,2758.4,1.1782]
[1749713414469,0.72493,2758.4,2758.3,0.631]
[1749713415770,0.72493,2758.4,2758.3,1.9236]
[1749713417070,4.31584,2759.0,2758.3,1.9236]
[1749713417071,3.4977,2759.1,2758.3,6.9236]
[1749713417267,3.4977,2759.1,2758.4,1.282]
[1749713417572,3.4977,2759.1,2758.5,20.905]
[1749713417573,0.72487,2758.6,2758.5,20.905]
[1749713417761,0.72498,2758.2,2758.1,0.7034172]
[1749713417965,0.72497,2758.3,2758.1,21.6114172]
[1749713418163,2.55415951,2758.5,2758.1,22.3364072]
[1749713418370,0.72495,2758.4,2758.1,1.4284072]
[1749713418571,0.72495,2758.4,2758.2,20.909]
[1749713418868,0.59303951,2758.5,2758.2,20.909]
[1749713419068,0.59303951,2758.5,2758.1,0.7034172]
[1749713419267,0.72496,2758.3,2758.2,20.907]
[1749713419469,1.2804,2758.4,2758.2,20.907]
[1749713419670,1.2804,2758.4,2758.3,20.907]
[1749713420462,1.2804,2758.4,2758.3,20.9690172]
[1749713421675,2.00533,2758.4,2758.3,20.9690172]
[1749713421877,2.00533,2758.4,2758.3,20.9700172]
[1749713422173,1.8927,2758.4,2758.3,20.9700172]
[1749713422373,2.61763,2758.4,2758.3,20.9700172]
[1749713422772,1.8927,2758.4,2758.3,20.9700172]
[1749713422973,2.61763,2758.4,2758.3,20.9700172]
[1749713423475,2.61763,2758.4,2758.3,0.0620172]
[1749713423776,2.61763,2758.4,2758.3,20.9640172]
[1749713427568,2.61763,2758.4,2758.3,0.0620172]
[1749713427777,2.61763,2758.4,2758.3,20.9600172]
[1749713432584,3.93814951,2758.5,2758.3,20.9600172]
[1749713432775,3.21323951,2758.5,2758.4,0.72493]
[1749713433979,3.21323951,2758.5,2758.3,20.9600172]
[1749713434181,3.21323951,2758.5,2758.4,0.72493]
[1749713434382,3.21323951,2758.5,2758.3,21.6849472]
[1749713434681,3.21323951,2758.5,2758.4,0.72493]
[1749713434884,0.00543951,2758.5,2758.4,0.72493]
[1749713435284,0.00543951,2758.5,2758.4,2.01223]
[1749713436184,0.00543951,2758.5,2758.4,22.89823]
[1749713437387,0.00543951,2758.5,2758.4,0.72493]
[1749713437587,0.00543951,2758.5,2758.4,21.60593]
[1749713438589,0.00543951,2758.5,2758.4,22.87323]
[1749713438891,0.8335,2758.9,2758.8,0.72482]
[1749713439089,0.5436,2758.9,2758.8,5.01782]
[1749713439289,3.2078,2759.7,2758.8,5.0]
[1749713439484,0.72476,2759.1,2758.9,21.4765]
[1749713439684,3.2078,2759.1,2759.0,20.937]
[1749713439990,0.72477,2759.0,2758.7,22.64584]
[1749713440183,0.00543951,2759.2,2758.8,20.943]
[1749713440379,0.00543951,2759.2,2758.8,21.5415]
[1749713440583,0.73016951,2759.2,2758.8,21.5415]
[1749713440785,0.00543951,2759.2,2758.8,21.5415]
[1749713440986,0.00543951,2759.2,2758.9,0.72477]
[1749713441181,0.73015951,2759.2,2758.9,0.72477]
[1749713441384,0.73015951,2759.2,2759.0,0.72476]
[1749713441385,0.00543951,2759.2,2759.0,0.72476]
[1749713441581,0.00543951,2759.2,2759.1,0.72474]
[1749713442388,0.5435,2759.5,2759.4,0.72466]
[1749713442690,0.5435,2759.5,2759.4,20.947]
[1749713442890,0.5435,2759.5,2759.4,21.67166]
[1749713443287,0.5435,2759.5,2759.2,0.617]
[1749713443488,0.5435,2759.5,2758.9,3.851]
[1749713443796,1.33066,2759.4,2759.3,16.65]
[1749713443994,4.53846,2759.4,2759.3,20.943]
[1749713446095,1.33066,2759.4,2759.3,20.943]
[1749713446393,4.53846,2759.4,2759.3,20.943]
[1749713451000,4.53846,2759.4,2759.3,21.0050172]
[1749713451203,4.53846,2759.4,2759.3,0.0620172]
[1749713451399,4.53846,2759.4,2759.3,21.0220172]
[1749713452601,4.53846,2759.4,2759.3,0.0620172]
[1749713452801,4.53846,2759.4,2759.3,21.0130172]
[1749713453801,4.53846,2759.4,2759.3,0.0620172]
[1749713453997,4.53846,2759.4,2759.3,21.0130172]
[1749713454198,4.53846,2759.4,2759.3,0.0620172]
[1749713454402,4.53846,2759.4,2759.3,4.3810172]
[1749713454602,4.53846,2759.4,2759.3,21.0090172]
[1749713455302,4.53846,2759.4,2759.3,21.0080172]
[1749713460507,4.53846,2759.4,2759.3,0.0620172]
[1749713460708,4.53846,2759.4,2759.3,20.9950172]
[1749713461005,4.53846,2759.4,2759.3,20.9920172]
[1749713461601,0.54893951,2759.6,2759.3,20.9920172]
[1749713461602,0.54893951,2759.6,2759.5,0.72464]
[1749713462103,1.27356951,2759.6,2759.4,0.6322]
[1749713462303,0.54893951,2759.6,2759.5,0.72464]
[1749713462509,1.27354951,2759.6,2759.4,1.35685]
[1749713462713,0.54893951,2759.6,2759.5,0.72464]
[1749713463099,1e-08,2759.8,2759.6,0.72461]
[1749713463406,3.2078,2759.7,2759.3,0.0620172]
[1749713463709,3.93246,2759.4,2759.3,0.0620172]
[1749713464008,3.93246,2759.4,2759.3,21.0570172]
[1749713464408,3.93246,2759.4,2759.3,20.995]
[1749713465109,0.72472,2759.2,2759.1,0.00543951]
[1749713465303,0.72472,2759.2,2759.1,20.99543951]
[1749713466507,0.6017,2759.3,2759.1,20.99543951]
[1749713466808,0.72471,2759.2,2759.1,20.99543951]
[1749713467509,1.32641,2759.3,2759.1,20.99543951]
[1749713467710,0.6017,2759.3,2759.1,20.99543951]
[1749713468004,3.2078,2759.4,2759.1,25.99543951]
[1749713468206,0.72467,2759.4,2759.1,22.91046951]
[1749713468405,0.72464,2759.5,2759.2,0.7247]
[1749713468605,0.72466,2759.4,2759.1,22.91046951]
[1749713468810,0.00543951,2759.6,2759.1,22.18573951]
[1749713469013,0.72467,2759.4,2759.1,22.91046951]
[1749713469308,0.72468,2759.4,2759.1,22.91046951]
[1749713470212,0.00543951,2759.6,2759.4,0.72465]
[1749713470511,0.00543951,2759.6,2759.5,4.9896172]
[1749713471005,0.73004951,2759.6,2759.5,0.0620172]
[1749713471400,0.00543951,2759.6,2759.5,16.7460172]
[1749713471607,2.02444951,2759.6,2759.5,16.7460172]
[1749713472106,1.29983951,2759.6,2759.5,16.7460172]
[1749713472306,2.02444951,2759.6,2759.5,16.7460172]
[1749713472607,1.29983951,2759.6,2759.5,17.4706572]
[1749713472815,0.00543951,2759.6,2759.5,16.7460172]
[1749713473311,0.73004951,2759.6,2759.5,16.7460172]
[1749713473510,0.00543951,2759.6,2759.5,16.7460172]
[1749713474213,0.73004951,2759.6,2759.5,16.7460172]
[1749713474911,0.00543951,2759.6,2759.5,16.7460172]
[1749713475111,0.73004951,2759.6,2759.5,16.7460172]
[1749713475413,0.73004951,2759.6,2759.5,0.0620172]
[1749713475615,2.02834951,2759.6,2759.5,16.7450172]
[1749713476006,2.02834951,2759.6,2759.5,21.0600172]
[1749713476709,2.02834951,2759.6,2759.5,21.0580172]
[1749713478708,2.02834951,2759.6,2759.5,4.3960172]
[1749713479011,2.02834951,2759.6,2759.5,21.0710172]
[1749713479908,2.02834951,2759.6,2759.5,0.0620172]
[1749713480213,0.72472,2759.2,2759.1,0.00543951]
[1749713480416,3.93252,2759.2,2759.1,0.00543951]
[1749713482410,0.72485,2758.7,2758.6,21.001]
[1749713482613,0.72495,2758.3,2758.2,25.84678]
[1749713482817,0.72495,2758.3,2758.2,46.85778]
[1749713483523,0.72495,2758.3,2758.2,29.4558]
[1749713483711,0.72495,2758.3,2758.2,46.1358]
[1749713483912,0.72495,2758.3,2758.2,46.1348]
[1749713484313,0.72495,2758.3,2758.2,29.4558]
[1749713484613,0.72495,2758.3,2758.2,46.1338]
[1749713485514,0.72495,2758.3,2758.2,46.1358]
[1749713485817,0.72495,2758.3,2758.2,46.1318]
[1749713487023,0.72495,2758.3,2758.2,42.923]
[1749713487520,0.725,2758.1,2758.0,0.00543951]
[1749713487818,3.9328,2758.1,2758.0,21.01343951]
[1749713488311,5.1526,2758.1,2758.0,21.01343951]
[1749713490525,5.1526,2758.1,2758.0,16.67943951]
[1749713492420,5.1526,2758.1,2758.0,16.67443951]
[1749713492921,5.1526,2758.1,2758.0,0.00543951]
[1749713493121,5.1526,2758.1,2758.0,16.67443951]
[1749713493726,5.1526,2758.1,2758.0,0.00543951]
[1749713494024,5.1526,2758.1,2758.0,16.67243951]
[1749713494825,5.1526,2758.1,2758.0,16.73445671]
[1749713495626,5.1526,2758.1,2758.0,0.06745671]
[1749713495823,5.1526,2758.1,2758.0,16.72845671]
[1749713498320,3.9328,2758.1,2758.0,16.72845671]
[1749713498715,3.9328,2758.1,2758.0,17.32295671]
[1749713498927,3.9328,2758.1,2758.0,21.06645671]
[1749713499128,5.1084,2758.1,2758.0,21.06645671]
[1749713499324,5.1084,2758.1,2758.0,4.40345671]
[1749713499536,5.1084,2758.1,2758.0,21.06645671]
[1749713500336,5.1084,2758.1,2758.0,16.73545671]
[1749713500730,5.1084,2758.1,2758.0,0.06745671]
[1749713501333,9.3834,2758.1,2756.9,3.2078]
[1749713501533,0.72521,2757.3,2757.2,21.008]
[1749713502838,0.72524,2757.2,2757.0,0.00543951]
[1749713503036,0.72524,2757.2,2757.1,21.14731]
[1749713503731,0.72524,2757.2,2757.1,4.45631]
[1749713503927,0.72524,2757.2,2757.1,21.14231]
[1749713506535,0.72524,2757.2,2757.1,4.45631]
[1749713506736,3.93304,2757.2,2757.1,4.45631]
[1749713506935,3.93304,2757.2,2757.1,0.12031]
[1749713510043,3.93304,2757.2,2757.1,0.1823272]
[1749713519640,0.00543951,2757.5,2757.4,0.72519]
[1749713519843,0.00543951,2757.5,2757.4,21.73219]
[1749713520141,0.5438,2757.9,2757.8,0.72508]
[1749713520346,0.72503,2758.0,2757.8,21.01]
[1749713520645,0.72505,2758.0,2757.8,21.01]
[1749713520839,3.2078,2758.2,2757.8,21.6105]
[1749713521041,0.72504,2758.0,2757.8,21.6105]
[1749713521241,0.72506,2757.9,2757.8,21.6105]
[1749713521845,3.2078,2758.2,2757.8,21.6105]
[1749713522139,0.72502,2758.1,2757.8,22.33557]
[1749713522339,0.72503,2758.0,2757.8,22.8206]
[1749713523147,0.72503,2758.0,2757.9,0.6441]
[1749713523347,0.72506,2757.9,2757.8,0.6005]
[1749713523550,0.72506,2757.9,2757.8,21.6125]
[1749713523945,0.72504,2758.0,2757.8,21.6125]
[1749713524356,0.72506,2757.9,2757.8,0.6005]
[1749713524546,0.72506,2757.9,2757.8,21.6085]
[1749713524747,0.72506,2757.9,2757.8,0.6005]
[1749713524946,0.72506,2757.9,2757.8,21.6075]
[1749713525443,0.72506,2757.9,2757.8,21.6695172]
[1749713526451,0.72506,2757.9,2757.8,0.0620172]
[1749713526855,0.72506,2757.9,2757.8,21.0630172]
[1749713527753,0.72506,2757.9,2757.8,0.0620172]
[1749713528051,0.72506,2757.9,2757.8,21.0620172]
[1749713531054,4.54029,2758.2,2757.8,26.0620172]
[1749713531354,1.27420951,2758.3,2758.0,3.2078]
[1749713531552,1.27420951,2758.3,2758.1,0.725]
[1749713531753,0.73040951,2758.3,2758.2,4.332]
[1749713532053,0.00543951,2758.3,2758.2,5.05698]
[1749713532250,0.73038951,2758.3,2758.2,4.332]
[1749713534055,0.73038951,2758.3,2757.8,0.6482172]
[1749713534056,1.81786951,2758.3,2757.8,0.6482172]
[1749713534253,0.72506,2757.9,2757.8,0.0620172]
[1749713534449,0.72506,2757.9,2757.8,21.0500172]
[1749713539060,0.5438,2758.1,2758.0,0.72503]
[1749713539254,0.5918,2758.2,2757.9,3.8537]
[1749713539455,0.0048,2758.2,2758.1,0.725]
[1749713539854,0.00543951,2758.3,2758.2,0.72498]
[1749713540055,0.00543951,2758.3,2758.2,5.04398]
[1749713540959,0.00543951,2758.3,2758.2,4.319]
[1749713540960,0.73038951,2758.3,2758.2,4.319]
[1749713541752,0.73040951,2758.3,2758.1,0.725]
[1749713541954,0.00543951,2758.3,2758.2,20.975]
[1749713542762,0.73038951,2758.3,2758.2,20.975]
[1749713545557,0.00543951,2758.3,2758.2,26.69998]
[1749713545762,0.00543951,2758.3,2758.2,29.90778]
[1749713546658,0.7248,2758.9,2758.3,0.72495]
[1749713546960,0.5973,2759.2,2759.0,0.72476]
[1749713547161,2.56332,2759.2,2759.1,16.658]
[1749713550963,0.00543951,2759.4,2759.1,21.658]
[1749713551263,0.00543951,2759.4,2758.9,0.00543951]
[1749713551463,0.72477,2759.0,2758.9,0.00543951]
[1749713551764,0.72477,2759.0,2758.9,21.01743951]
[1749713551960,0.72477,2759.0,2758.9,4.32343951]
[1749713552155,2.63767,2759.0,2758.9,21.02043951]
[1749713552556,2.63767,2759.0,2758.9,0.00543951]
[1749713552856,2.63767,2759.0,2758.9,21.02043951]
[1749713555770,2.63767,2759.0,2758.9,21.08245671]
[1749713555958,2.63767,2759.0,2758.9,0.06745671]
[1749713556162,7.63767,2759.0,2758.9,0.06745671]
[1749713556369,2.63767,2759.0,2758.9,0.06745671]
[1749713557068,7.63767,2759.0,2758.9,6.71e-06]
[1749713558073,0.72477,2759.0,2758.9,6.71e-06]
[1749713558564,1.97547,2759.0,2758.9,6.71e-06]
[1749713560169,1.97547,2759.0,2758.9,16.69500671]
[1749713560974,0.72477,2759.0,2758.9,16.69500671]
[1749713561266,0.72477,2759.0,2758.9,6.71e-06]
[1749713561467,6.93317,2759.0,2758.9,6.71e-06]
[1749713562169,0.72482,2758.8,2758.7,6.22e-06]
[1749713562369,3.93262,2758.8,2758.7,6.22e-06]
[1749713562771,5.84842,2758.8,2758.7,6.22e-06]
[1749713569674,0.725,2758.1,2758.0,4.356]
[1749713569874,3.9328,2758.1,2758.0,16.713]
[1749713570480,0.72511,2757.7,2757.6,1.2578]
[1749713570683,0.72511,2757.7,2757.6,22.3278]
[1749713570881,0.72511,2757.7,2757.6,23.05294]
[1749713571073,0.72511,2757.7,2757.6,22.3278]
[1749713571274,0.64993951,2757.9,2757.5,21.921]
[1749713571275,0.72514,2757.6,2757.5,21.921]
[1749713571473,0.72514,2757.6,2757.5,42.993]
[1749713573976,3.9329,2757.8,2757.5,42.993]
[1749713574174,0.72511,2757.7,2757.6,0.72512]
[1749713574374,3.2078,2757.8,2757.7,0.72511]
[1749713574375,3.93289,2757.8,2757.7,0.72511]
[1749713574570,3.2078,2757.8,2757.7,0.72511]
[1749713574880,3.93288,2757.8,2757.7,0.633]
[1749713575080,3.93288,2757.8,2757.7,1.35811]
[1749713575280,0.73049951,2757.9,2757.7,0.633]
[1749713575480,0.73049951,2757.9,2757.7,2.637]
[1749713575778,0.72508,2757.8,2757.7,1.9119]
[1749713576178,0.72511,2757.7,2757.6,0.5955]
[1749713576378,0.72511,2757.7,2757.6,21.072]
[1749713576876,0.72516,2757.5,2757.4,0.00543951]
[1749713577083,0.72516,2757.5,2757.4,16.72343951]
[1749713577580,1.91596,2757.5,2757.4,16.72343951]
[1749713577875,1.91596,2757.5,2757.4,0.00543951]
[1749713578084,1.91596,2757.5,2757.4,16.72143951]
[1749713579777,1.91596,2757.5,2757.4,16.71543951]
[1749713581180,1.91596,2757.5,2757.4,0.00543951]
[1749713581380,1.91596,2757.5,2757.4,16.71143951]
[1749713583781,3.93296,2757.6,2757.5,0.72516]
[1749713584088,0.72516,2757.5,2757.4,18.04160951]
[1749713584290,3.93296,2757.6,2757.5,0.72516]
[1749713584492,0.72516,2757.5,2757.4,18.68963671]
[1749713584788,0.72516,2757.5,2757.4,19.92013671]
[1749713585184,0.72516,2757.5,2757.4,19.19495671]
[1749713585786,0.72516,2757.5,2757.4,19.92014671]
[1749713585987,3.2078,2757.6,2757.4,19.92014671]
[1749713585988,3.93295,2757.6,2757.4,19.92014671]
[1749713586382,0.72516,2757.5,2757.4,19.19495671]
[1749713586683,0.72516,2757.5,2757.4,17.96445671]
[1749713588994,0.72516,2757.5,2757.4,1.25845671]
[1749713589196,0.72516,2757.5,2757.4,22.30245671]
[1749713591500,0.72516,2757.5,2757.4,1.25845671]
[1749713591695,0.72516,2757.5,2757.4,22.29545671]
[1749713595003,0.72516,2757.5,2757.4,22.28945671]
[1749713597203,0.72524,2757.2,2757.1,0.12031]
[1749713597406,3.93304,2757.2,2757.1,0.12031]
[1749713598305,5.15444,2757.2,2757.1,0.12031]
[1749713599903,5.15444,2757.2,2756.9,0.00543951]
[1749713599904,0.72542,2756.5,2756.4,4.332]
[1749713600202,0.7255,2756.2,2756.0,4.4145]
[1749713600399,0.72553,2756.1,2756.0,4.4145]
[1749713600609,0.72553,2756.1,2756.0,25.4365]
[1749713600998,0.00543951,2756.3,2756.0,25.4365]
[1749713601199,0.72552,2756.2,2756.0,26.16205]
[1749713601400,0.72553,2756.1,2756.0,25.4365]
[1749713601603,0.72551,2756.2,2756.0,26.16206]
[1749713601800,0.72551,2756.2,2756.0,6.26426]
[1749713602104,0.72551,2756.2,2756.1,16.685]
[1749713604511,0.72553,2756.1,2756.0,1.2067]
[1749713604814,3.21323951,2756.3,2755.5,16.678]
[1749713605005,0.72566,2755.6,2755.5,16.678]
[1749713605205,4.9998,2756.0,2755.5,16.678]
[1749713605607,0.72574,2755.3,2755.2,1.2398]
[1749713605807,0.72574,2755.3,2755.2,21.6781]
[1749713606708,0.72574,2755.3,2755.2,0.5921]
[1749713606914,0.72574,2755.3,2755.2,21.6811]
[1749713607107,0.72574,2755.3,2755.2,26.6811]
[1749713607308,0.72574,2755.3,2755.2,21.6811]
[1749713607809,3.93354,2755.3,2755.2,0.5921]
[1749713608018,3.93354,2755.3,2755.2,16.778]
[1749713608206,4.427,2755.6,2755.2,16.778]
[1749713608407,0.72571,2755.5,2755.3,4.334]
[1749713608712,0.72571,2755.5,2755.3,8.1667]
[1749713608915,0.72569,2755.5,2755.4,21.127]
[1749713609109,0.72568,2755.6,2755.4,21.127]
[1749713609316,3.2078,2755.7,2755.4,21.127]
[1749713609814,3.2078,2755.7,2755.5,0.72568]
[1749713610013,3.2078,2755.7,2755.4,21.127]
[1749713610414,3.93346,2755.7,2755.4,21.8527]
[1749713610816,3.93346,2755.7,2755.5,0.72568]
[1749713611015,3.2078,2755.7,2755.6,0.72566]
[1749713611215,3.2078,2755.7,2755.5,0.72567]
[1749713611415,3.2078,2755.7,2755.4,21.127]
[1749713611621,3.2078,2755.7,2755.5,0.72568]
[1749713612114,3.2078,2755.7,2755.6,21.126]
[1749713612115,3.93344,2755.7,2755.6,21.126]
[1749713612720,3.93344,2755.7,2755.6,21.125]
[1749713612916,3.93344,2755.7,2755.6,21.123]
[1749713613115,0.72574,2755.3,2755.2,3.2078]
[1749713613317,0.72574,2755.3,2755.2,21.123]
[1749713613616,1.2884,2755.6,2755.2,21.123]
[1749713613820,0.72571,2755.5,2755.2,21.84875]
[1749713614522,0.72571,2755.5,2755.2,21.123]
[1749713614723,0.72572,2755.4,2755.2,21.84875]
[1749713615017,2.01406,2755.6,2755.5,0.0620172]
[1749713615818,3.93345,2755.7,2755.5,0.0620172]
[1749713616024,3.2078,2755.7,2755.5,0.0620172]
[1749713616325,3.93344,2755.7,2755.5,0.7876872]
[1749713616522,3.93344,2755.7,2755.5,0.0620172]
[1749713616825,3.2078,2755.7,2755.6,5.05966]
[1749713617124,1.32066,2756.0,2755.7,0.72562]
[1749713617320,3.2078,2756.1,2755.9,0.72557]
[1749713617620,0.00543951,2756.3,2756.0,4.334]
[1749713617819,0.00543951,2756.3,2756.1,0.72552]
[1749713618121,0.00543951,2756.3,2756.2,0.7255]
[1749713618423,0.72551,2756.2,2756.0,5.05954]
[1749713618617,0.72551,2756.2,2756.0,4.334]
[1749713618818,0.00543951,2756.3,2756.0,5.05954]
[1749713619021,1.28553951,2756.3,2756.0,4.334]
[1749713619220,0.7255,2756.2,2756.1,21.139]
[1749713619426,3.2078,2756.2,2755.8,4.334]
[1749713619614,3.93338,2755.9,2755.8,4.334]
[1749713619814,1.8995,2756.1,2755.8,21.145]
[1749713620221,0.72558,2755.9,2755.8,21.145]
[1749713620614,1.8995,2756.1,2755.8,21.145]
[1749713620820,2.62504,2756.1,2755.8,21.87059]
[1749713621020,2.62504,2756.1,2755.9,0.72558]
[1749713621220,0.00543951,2756.3,2755.8,21.145]
[1749713621421,0.00543951,2756.3,2755.9,0.6187]
[1749713621422,0.73092951,2756.3,2755.9,0.6187]
[1749713621622,0.72552,2756.2,2755.9,0.6187]
[1749713621822,0.72552,2756.2,2755.9,1.34427]
[1749713622029,0.72552,2756.2,2755.9,0.6187]
[1749713622225,0.72552,2756.2,2755.9,1.34426]
[1749713622529,0.72553,2756.1,2755.9,1.34426]
[1749713622723,1.01572,2756.2,2755.9,1.34426]
[1749713622925,0.72556,2756.0,2755.9,4.334]
[1749713623122,0.72556,2756.0,2755.9,21.147]
[1749713623323,1.93836,2756.0,2755.9,21.147]
[1749713623832,1.2128,2756.0,2755.9,21.147]
[1749713624133,1.93836,2756.0,2755.9,21.147]
[1749713624430,1.2128,2756.0,2755.9,21.147]
[1749713624727,1.93836,2756.0,2755.9,21.147]
[1749713626030,1.2128,2756.0,2755.9,21.147]
[1749713626224,3.8529,2756.1,2756.0,0.72556]
[1749713626429,3.8529,2756.1,2755.9,21.147]
[1749713626631,0.72556,2756.0,2755.9,21.147]
[1749713627628,4.57845,2756.1,2755.9,21.87258]
[1749713628231,5.12265,2756.1,2755.9,21.87258]